Workbook

Sheet Отчёт
I1: Приложение 6 к договору на электроснабжение и потребление электрической энергии от 19/08. № 54365
D2: ОТЧЕТ
B3: Учреждение образования "Осиповичская государственная специальная общеобразовательная школа-интернат для детей с нарушением функций опорно-двигательного аппарата"
D4: за месяц | G4: июнь | H4: 2017 | I4: год | O4: =MATCH($G$4, Месяцы, 0) + MATCH($H$4, 'по месяцам'!$A:$A, 0) - 1 -> 9
B6: Название объекта | C6: Адрес объекта | D6: тип транс-ров тока | E6: Номер прибора учета | F6: Место расположения | G6: Показания счетчика | J6: Потребленная электроэнергия (кВт) | K6: Потери в | N6: =MATCH($G$4, Месяцы, 0) + MATCH($H$4, 'по месяцам'!$A:$A, 0) - 1 -> 9
G7: Коэффициент трансформации | H7: Предыдущее | I7: Последнее | K7: трансформаторе | L7: сети
C8: Осиповичи | D8: ТОП-0,66 0,5 У3 | E8: 75854684 | F8: Изолятор | G8: 15 | H8: =INDEX('по месяцам'!$D:$D, $O$4-1) -> 2699 | I8: =INDEX('по месяцам'!$D:$D, $O$4) -> 2800 | J8: =INDEX('по месяцам'!$C:$C, $O$4) -> 1515 | L8: =INDEX('по месяцам'!$F:$F, $O$4) -> 1
D9: ТОП-0,66 0,5 У3 | E9: 600719 | F9: Уличное освещение | G9: 15 | H9: =INDEX('по месяцам'!$K:$K, $O$4-1) -> 743 | I9: =INDEX('по месяцам'!$K:$K, $O$4) -> 750 | J9: =INDEX('по месяцам'!$J:$J, $O$4) -> 105 | L9: =INDEX('по месяцам'!$M:$M, $O$4) -> 2
D10: ТОП-0,66 0,5 У3 | E10: 470782 | F10: Мастерские | G10: 1 | H10: =INDEX('по месяцам'!$R:$R, $O$4-1) -> 799 | I10: =INDEX('по месяцам'!$R:$R, $O$4) -> 900 | J10: =INDEX('по месяцам'!$Q:$Q, $O$4) -> 101 | L10: =INDEX('по месяцам'!$T:$T, $O$4) -> 3
D11: ТОП-0,66 0,5 У3 | E11: 535005 | F11: Овощехранилище | G11: 1 | H11: =INDEX('по месяцам'!$Y:$Y, $O$4-1) -> 6199 | I11: =INDEX('по месяцам'!$Y:$Y, $O$4) -> 6240 | J11: =INDEX('по месяцам'!$X:$X, $O$4) -> 41 | K11: =IF(J11<0,"Введите данные","") ->  | L11: =INDEX('по месяцам'!$AA:$AA, $O$4) -> 4
D12: ТОП-0,66 0,5 У3 | E12: 546500 | F12: Освещение школы | G12: 1 | H12: =INDEX('по месяцам'!$AF:$AF, $O$4-1) -> 12751 | I12: =INDEX('по месяцам'!$AF:$AF, $O$4) -> 12799 | J12: =INDEX('по месяцам'!$AE:$AE, $O$4) -> 48 | L12: =INDEX('по месяцам'!$AH:$AH, $O$4) -> 5
D13: ТОП-0,66 0,5 У3 | E13: 46789 | F13: новая столовая | G13: 1 | H13: =INDEX('по месяцам'!$AM:$AM, $O$4-1) -> 60286 | I13: =INDEX('по месяцам'!$AM:$AM, $O$4) -> 62461 | J13: =INDEX('по месяцам'!$AL:$AL, $O$4) -> 2175 | L13: =INDEX('по месяцам'!$AO:$AO, $O$4) -> 6
D14: ТОП-0,66 0,5 У3 | E14: 570328 | F14: Кухня | G14: 1 | H14: =INDEX('по месяцам'!$BA:$BA, $O$4-1) -> 40058 | I14: =INDEX('по месяцам'!$BA:$BA, $O$4) -> 40588 | J14: =INDEX('по месяцам'!$AZ:$AZ, $O$4) -> 530 | L14: =INDEX('по месяцам'!$AV:$AV, $O$4) -> 7
D15: ТОП-0,66 0,5 У4 | E15: 570329 | F15: Прачечная | G15: 1 | H15: =INDEX('по месяцам'!$AT:$AT, $O$4-1) -> 40058 | I15: =INDEX('по месяцам'!$AT:$AT, $O$4) -> 50000 | J15: =INDEX('по месяцам'!$AS:$AS, $O$4) -> 9942 | L15: =INDEX('по месяцам'!$BC:$BC, $O$4) -> 8
D16: Всего потреблено электроэнергии: | J16: =SUM(J8:J15) -> 14457 | K16: кВт
C22: Руководитель предприятия (организации)
D25: Показания за месяц
G27: 6
F28: =H4 -> 2017 | G28: 6 | H28: ПОТЕРИ в сети
D29: СЧЕТЧИКИ | E29: 75854684 | F29: Изолятор | G29: 2800 | H29: =0.01*G29 -> 28
E30: 600719 | F30: Уличное освещение | G30: 750 | H30: =0.01*G30 -> 7.5
E31: 470782 | F31: Мастерские | G31: 900 | H31: 9
E32: 535005 | F32: Овощехранилище | G32: 6240 | H32: 62.4
E33: 546500 | F33: Освещение школы | G33: 12799 | H33: 127.99
E34: 46789 | F34: КНС | G34: 62461 | H34: 624.61
E35: 570328 | F35: Кухня | G35: 40588 | H35: 405.88
E36: 444555 | F36: Прачечная | G36: 50000 | H36: 500

Sheet по месяцам
D1: Изолятор | J1: Уличное освещение | Q1: Мастерские | Y1: Овощехранилище | AD1: Освещение школы | AM1: КНС | AT1: Прачечная | BA1: Кухня
C2: 75854684 | D2: показания счетчика | J2: 600719 | K2: показания счетчика | Q2: 470782 | R2: показания счетчика | X2: 535005 | Y2: показания счетчика | AE2: 546500 | AF2: показания счетчика | AL2: 46789 | AM2: показания счетчика | AS2: 570328 | AT2: показания счетчика | AZ2: 444555 | BA2: показания счетчика
C3: расход (кВт) | D3: 2573 | E3: Коэффициент трансформации | F3: ПОТЕРИ в сети | J3: расход (кВт) | K3: 543 | L3: Коэффициент трансформации | M3: ПОТЕРИ в сети | Q3: расход (кВт) | R3: 686 | S3: Коэффициент трансформации | T3: ПОТЕРИ в сети | X3: расход (кВт) | Y3: 5914 | Z3: Коэффициент трансформации | AA3: ПОТЕРИ в сети | AE3: расход (кВт) | AF3: 12471 | AG3: Коэффициент трансформации | AH3: ПОТЕРИ в сети | AL3: расход (кВт) | AM3: 0 | AN3: Коэффициент трансформации | AO3: ПОТЕРИ в сети | AS3: расход (кВт) | AT3: 36039 | AU3: Коэффициент трансформации | AV3: ПОТЕРИ в сети | AZ3: расход (кВт) | BA3: 36039 | BB3: Коэффициент трансформации | BC3: ПОТЕРИ в сети
A4: 2017 | B4: январь | C4: =(D4-D3)*E4 -> 390 | D4: 2599 | E4: 15 | F4: 1 | H4: 2017 | I4: январь | J4: =(K4-K3)*L4 -> 780 | K4: 595 | L4: 15 | M4: 2 | O4: 2017 | P4: январь | Q4: =(R4-R3)*S4 -> 44 | R4: 730 | S4: 1 | T4: 3 | V4: 2017 | W4: январь | X4: =(Y4-Y3)*Z4 -> 21 | Y4: 5935 | Z4: 1 | AA4: 4 | AC4: 2017 | AD4: январь | AE4: =(AF4-AF3)*AG4 -> 39 | AF4: 12510 | AG4: 1 | AH4: 5 | AJ4: 2017 | AK4: январь | AL4: =(AM4-AM3)*AN4 -> 50353 | AM4: 50353 | AN4: 1 | AO4: 6 | AQ4: 2017 | AR4: январь | AS4: =(AT4-AT3)*AU4 -> 728 | AT4: 36767 | AU4: 1 | AV4: 7 | AX4: 2017 | AY4: январь | AZ4: =(BA4-BA3)*BB4 -> 728 | BA4: 36767 | BB4: 1 | BC4: 8
B5: февраль | C5: =(D5-D4)*E5 -> 375 | D5: 2624 | E5: 15 | F5: 1 | I5: февраль | J5: =(K5-K4)*L5 -> 750 | K5: 645 | L5: 15 | M5: 2 | P5: февраль | Q5: 18 | R5: 748 | S5: 1 | T5: 3 | W5: февраль | X5: 80 | Y5: 6015 | Z5: 1 | AA5: 4 | AD5: февраль | AE5: 216 | AF5: 12726 | AG5: 1 | AH5: 5 | AK5: февраль | AL5: 2780 | AM5: 53133 | AN5: 1 | AO5: 6 | AR5: февраль | AS5: 2718 | AT5: 39485 | AU5: 1 | AV5: 7 | AY5: февраль | AZ5: 2718 | BA5: 39485 | BB5: 1 | BC5: 8
B6: март | C6: =(D6-D5)*E6 -> 495 | D6: 2657 | E6: 15 | F6: 1 | I6: март | J6: 765 | K6: 696 | L6: 15 | M6: 2 | P6: март | Q6: 6 | R6: 754 | S6: 1 | T6: 3 | W6: март | X6: 58 | Y6: 6073 | Z6: 1 | AA6: 4 | AD6: март | AE6: 0 | AF6: 12726 | AG6: 1 | AH6: 5 | AK6: март | AL6: 2001 | AM6: 55134 | AN6: 1 | AO6: 6 | AR6: март | AS6: 2 | AT6: 39487 | AU6: 1 | AV6: 7 | AY6: март | AZ6: 2 | BA6: 39487 | BB6: 1 | BC6: 8
B7: апрель | C7: 270 | D7: 2675 | E7: 15 | F7: 1 | I7: апрель | J7: 255 | K7: 713 | L7: 15 | M7: 2 | P7: апрель | Q7: 24 | R7: 778 | S7: 1 | T7: 3 | W7: апрель | X7: 66 | Y7: 6139 | Z7: 1 | AA7: 4 | AD7: апрель | AE7: 0 | AF7: 12726 | AG7: 1 | AH7: 5 | AK7: апрель | AL7: 2744 | AM7: 57878 | AN7: 1 | AO7: 6 | AR7: апрель | AS7: 143 | AT7: 39630 | AU7: 1 | AV7: 7 | AY7: апрель | AZ7: 143 | BA7: 39630 | BB7: 1 | BC7: 8
B8: май | C8: 360 | D8: 2699 | E8: 15 | F8: 1 | I8: май | J8: 450 | K8: 743 | L8: 15 | M8: 2 | P8: май | Q8: 21 | R8: 799 | S8: 1 | T8: 3 | W8: май | X8: 60 | Y8: 6199 | Z8: 1 | AA8: 4 | AD8: май | AE8: 25 | AF8: 12751 | AG8: 1 | AH8: 5 | AK8: май | AL8: 2408 | AM8: 60286 | AN8: 1 | AO8: 6 | AR8: май | AS8: 428 | AT8: 40058 | AU8: 1 | AV8: 7 | AY8: май | AZ8: 428 | BA8: 40058 | BB8: 1 | BC8: 8
B9: июнь | C9: 1515 | D9: 2800 | E9: 15 | F9: 1 | I9: июнь | J9: 105 | K9: 750 | L9: 15 | M9: 2 | P9: июнь | Q9: 101 | R9: 900 | S9: 1 | T9: 3 | W9: июнь | X9: 41 | Y9: 6240 | Z9: 1 | AA9: 4 | AD9: июнь | AE9: 48 | AF9: 12799 | AG9: 1 | AH9: 5 | AK9: июнь | AL9: 2175 | AM9: 62461 | AN9: 1 | AO9: 6 | AR9: июнь | AS9: 9942 | AT9: 50000 | AU9: 1 | AV9: 7 | AY9: июнь | AZ9: 530 | BA9: 40588 | BB9: 1 | BC9: 8
B10: июль | C10: -42000 | E10: 15 | F10: 1 | I10: июль | J10: -11250 | L10: 15 | M10: 2 | P10: июль | Q10: -900 | S10: 1 | T10: 3 | W10: июль | X10: -6240 | Z10: 1 | AA10: 4 | AD10: июль | AE10: -12799 | AG10: 1 | AH10: 5 | AK10: июль | AL10: -62461 | AN10: 1 | AO10: 6 | AR10: июль | AS10: -50000 | AU10: 1 | AV10: 7 | AY10: июль | AZ10: -40588 | BB10: 1 | BC10: 8
B11: август | C11: 0 | E11: 15 | F11: 1 | I11: август | J11: 0 | L11: 15 | M11: 2 | P11: август | Q11: 0 | S11: 1 | T11: 3 | W11: август | X11: 0 | Z11: 1 | AA11: 4 | AD11: август | AE11: 0 | AG11: 1 | AH11: 5 | AK11: август | AL11: 0 | AN11: 1 | AO11: 6 | AR11: август | AS11: 0 | AU11: 1 | AV11: 7 | AY11: август | AZ11: 0 | BB11: 1 | BC11: 8
B12: сентябь | C12: 0 | E12: 15 | F12: 1 | I12: сентябь | J12: 0 | L12: 15 | M12: 2 | P12: сентябь | Q12: 0 | S12: 1 | T12: 3 | W12: сентябь | X12: 0 | Z12: 1 | AA12: 4 | AD12: сентябь | AE12: 0 | AG12: 1 | AH12: 5 | AK12: сентябь | AL12: 0 | AN12: 1 | AO12: 6 | AR12: сентябь | AS12: 0 | AU12: 1 | AV12: 7 | AY12: сентябь | AZ12: 0 | BB12: 1 | BC12: 8
B13: октябрь | C13: 0 | E13: 15 | F13: 1 | I13: октябрь | J13: 0 | L13: 15 | M13: 2 | P13: октябрь | Q13: 0 | S13: 1 | T13: 3 | W13: октябрь | X13: 0 | Z13: 1 | AA13: 4 | AD13: октябрь | AE13: 0 | AG13: 1 | AH13: 5 | AK13: октябрь | AL13: 0 | AN13: 1 | AO13: 6 | AR13: октябрь | AS13: 0 | AU13: 1 | AV13: 7 | AY13: октябрь | AZ13: 0 | BB13: 1 | BC13: 8
B14: ноябрь | C14: 0 | E14: 15 | F14: 1 | I14: ноябрь | J14: 0 | L14: 15 | M14: 2 | P14: ноябрь | Q14: 0 | S14: 1 | T14: 3 | W14: ноябрь | X14: 0 | Z14: 1 | AA14: 4 | AD14: ноябрь | AE14: 0 | AG14: 1 | AH14: 5 | AK14: ноябрь | AL14: 0 | AN14: 1 | AO14: 6 | AR14: ноябрь | AS14: 0 | AU14: 1 | AV14: 7 | AY14: ноябрь | AZ14: 0 | BB14: 1 | BC14: 8
B15: декабрь | C15: 0 | E15: 15 | F15: 1 | I15: декабрь | J15: 0 | L15: 15 | M15: 2 | P15: декабрь | Q15: 0 | S15: 1 | T15: 3 | W15: декабрь | X15: 0 | Z15: 1 | AA15: 4 | AD15: декабрь | AE15: 0 | AG15: 1 | AH15: 5 | AK15: декабрь | AL15: 0 | AN15: 1 | AO15: 6 | AR15: декабрь | AS15: 0 | AU15: 1 | AV15: 7 | AY15: декабрь | AZ15: 0 | BB15: 1 | BC15: 8
A16: 2018 | B16: январь | C16: 0 | E16: 15 | F16: 1 | H16: 2018 | I16: январь | J16: 0 | L16: 15 | M16: 2 | O16: 2018 | P16: январь | Q16: 0 | S16: 1 | T16: 3 | V16: 2018 | W16: январь | X16: 0 | Z16: 1 | AA16: 4 | AC16: 2018 | AD16: январь | AE16: 0 | AG16: 1 | AH16: 5 | AJ16: 2018 | AK16: январь | AL16: 0 | AN16: 1 | AO16: 6 | AQ16: 2018 | AR16: январь | AS16: 0 | AU16: 1 | AV16: 7 | AX16: 2018 | AY16: январь | AZ16: 0 | BB16: 1 | BC16: 8
B17: февраль | C17: 0 | E17: 15 | F17: 1 | I17: февраль | J17: 0 | L17: 15 | M17: 2 | P17: февраль | Q17: 0 | S17: 1 | T17: 3 | W17: февраль | X17: 0 | Z17: 1 | AA17: 4 | AD17: февраль | AE17: 0 | AG17: 1 | AH17: 5 | AK17: февраль | AL17: 0 | AN17: 1 | AO17: 6 | AR17: февраль | AS17: 0 | AU17: 1 | AV17: 7 | AY17: февраль | AZ17: 0 | BB17: 1 | BC17: 8
B18: март | C18: 0 | E18: 15 | F18: 1 | I18: март | J18: 0 | L18: 15 | M18: 2 | P18: март | Q18: 0 | S18: 1 | T18: 3 | W18: март | X18: 0 | Z18: 1 | AA18: 4 | AD18: март | AE18: 0 | AG18: 1 | AH18: 5 | AK18: март | AL18: 0 | AN18: 1 | AO18: 6 | AR18: март | AS18: 0 | AU18: 1 | AV18: 7 | AY18: март | AZ18: 0 | BB18: 1 | BC18: 8
B19: апрель | C19: 0 | E19: 15 | F19: 1 | I19: апрель | J19: 0 | L19: 15 | M19: 2 | P19: апрель | Q19: 0 | S19: 1 | T19: 3 | W19: апрель | X19: 0 | Z19: 1 | AA19: 4 | AD19: апрель | AE19: 0 | AG19: 1 | AH19: 5 | AK19: апрель | AL19: 0 | AN19: 1 | AO19: 6 | AR19: апрель | AS19: 0 | AU19: 1 | AV19: 7 | AY19: апрель | AZ19: 0 | BB19: 1 | BC19: 8
B20: май | C20: 0 | E20: 15 | F20: 1 | I20: май | J20: 0 | L20: 15 | M20: 2 | P20: май | Q20: 0 | S20: 1 | T20: 3 | W20: май | X20: 0 | Z20: 1 | AA20: 4 | AD20: май | AE20: 0 | AG20: 1 | AH20: 5 | AK20: май | AL20: 0 | AN20: 1 | AO20: 6 | AR20: май | AS20: 0 | AU20: 1 | AV20: 7 | AY20: май | AZ20: 0 | BB20: 1 | BC20: 8
B21: июнь | C21: 0 | E21: 15 | F21: 1 | I21: июнь | J21: 0 | L21: 15 | M21: 2 | P21: июнь | Q21: 0 | S21: 1 | T21: 3 | W21: июнь | X21: 0 | Z21: 1 | AA21: 4 | AD21: июнь | AE21: 0 | AG21: 1 | AH21: 5 | AK21: июнь | AL21: 0 | AN21: 1 | AO21: 6 | AR21: июнь | AS21: 0 | AU21: 1 | AV21: 7 | AY21: июнь | AZ21: 0 | BB21: 1 | BC21: 8
B22: июль | C22: 0 | E22: 15 | F22: 1 | I22: июль | J22: 0 | L22: 15 | M22: 2 | P22: июль | Q22: 0 | S22: 1 | T22: 3 | W22: июль | X22: 0 | Z22: 1 | AA22: 4 | AD22: июль | AE22: 0 | AG22: 1 | AH22: 5 | AK22: июль | AL22: 0 | AN22: 1 | AO22: 6 | AR22: июль | AS22: 0 | AU22: 1 | AV22: 7 | AY22: июль | AZ22: 0 | BB22: 1 | BC22: 8
B23: август | C23: 0 | E23: 15 | F23: 1 | I23: август | J23: 0 | L23: 15 | M23: 2 | P23: август | Q23: 0 | S23: 1 | T23: 3 | W23: август | X23: 0 | Z23: 1 | AA23: 4 | AD23: август | AE23: 0 | AG23: 1 | AH23: 5 | AK23: август | AL23: 0 | AN23: 1 | AO23: 6 | AR23: август | AS23: 0 | AU23: 1 | AV23: 7 | AY23: август | AZ23: 0 | BB23: 1 | BC23: 8
B24: сентябь | C24: 0 | E24: 15 | F24: 1 | I24: сентябь | J24: 0 | L24: 15 | M24: 2 | P24: сентябь | Q24: 0 | S24: 1 | T24: 3 | W24: сентябь | X24: 0 | Z24: 1 | AA24: 4 | AD24: сентябь | AE24: 0 | AG24: 1 | AH24: 5 | AK24: сентябь | AL24: 0 | AN24: 1 | AO24: 6 | AR24: сентябь | AS24: 0 | AU24: 1 | AV24: 7 | AY24: сентябь | AZ24: 0 | BB24: 1 | BC24: 8
B25: октябрь | C25: 0 | E25: 15 | F25: 1 | I25: октябрь | J25: 0 | L25: 15 | M25: 2 | P25: октябрь | Q25: 0 | S25: 1 | T25: 3 | W25: октябрь | X25: 0 | Z25: 1 | AA25: 4 | AD25: октябрь | AE25: 0 | AG25: 1 | AH25: 5 | AK25: октябрь | AL25: 0 | AN25: 1 | AO25: 6 | AR25: октябрь | AS25: 0 | AU25: 1 | AV25: 7 | AY25: октябрь | AZ25: 0 | BB25: 1 | BC25: 8
B26: ноябрь | C26: 0 | E26: 15 | F26: 1 | I26: ноябрь | J26: 0 | L26: 15 | M26: 2 | P26: ноябрь | Q26: 0 | S26: 1 | T26: 3 | W26: ноябрь | X26: 0 | Z26: 1 | AA26: 4 | AD26: ноябрь | AE26: 0 | AG26: 1 | AH26: 5 | AK26: ноябрь | AL26: 0 | AN26: 1 | AO26: 6 | AR26: ноябрь | AS26: 0 | AU26: 1 | AV26: 7 | AY26: ноябрь | AZ26: 0 | BB26: 1 | BC26: 8
B27: декабрь | C27: 0 | E27: 15 | F27: 1 | I27: декабрь | J27: 0 | L27: 15 | M27: 2 | P27: декабрь | Q27: 0 | S27: 1 | T27: 3 | W27: декабрь | X27: 0 | Z27: 1 | AA27: 4 | AD27: декабрь | AE27: 0 | AG27: 1 | AH27: 5 | AK27: декабрь | AL27: 0 | AN27: 1 | AO27: 6 | AR27: декабрь | AS27: 0 | AU27: 1 | AV27: 7 | AY27: декабрь | AZ27: 0 | BB27: 1 | BC27: 8
A28: 2019 | B28: январь | C28: 0 | E28: 15 | F28: 1 | H28: 2019 | I28: январь | J28: 0 | L28: 15 | M28: 2 | O28: 2019 | P28: январь | Q28: 0 | S28: 1 | T28: 3 | V28: 2019 | W28: январь | X28: 0 | Z28: 1 | AA28: 4 | AC28: 2019 | AD28: январь | AE28: 0 | AG28: 1 | AH28: 5 | AJ28: 2019 | AK28: январь | AL28: 0 | AN28: 1 | AO28: 6 | AQ28: 2019 | AR28: январь | AS28: 0 | AU28: 1 | AV28: 7 | AX28: 2019 | AY28: январь | AZ28: 0 | BB28: 1 | BC28: 8
B29: февраль | C29: 0 | E29: 15 | F29: 1 | I29: февраль | J29: 0 | L29: 15 | M29: 2 | P29: февраль | Q29: 0 | S29: 1 | T29: 3 | W29: февраль | X29: 0 | Z29: 1 | AA29: 4 | AD29: февраль | AE29: 0 | AG29: 1 | AH29: 5 | AK29: февраль | AL29: 0 | AN29: 1 | AO29: 6 | AR29: февраль | AS29: 0 | AU29: 1 | AV29: 7 | AY29: февраль | AZ29: 0 | BB29: 1 | BC29: 8
B30: март | C30: 0 | E30: 15 | F30: 1 | I30: март | J30: 0 | L30: 15 | M30: 2 | P30: март | Q30: 0 | S30: 1 | T30: 3 | W30: март | X30: 0 | Z30: 1 | AA30: 4 | AD30: март | AE30: 0 | AG30: 1 | AH30: 5 | AK30: март | AL30: 0 | AN30: 1 | AO30: 6 | AR30: март | AS30: 0 | AU30: 1 | AV30: 7 | AY30: март | AZ30: 0 | BB30: 1 | BC30: 8
B31: апрель | C31: 0 | E31: 15 | F31: 1 | I31: апрель | J31: 0 | L31: 15 | M31: 2 | P31: апрель | Q31: 0 | S31: 1 | T31: 3 | W31: апрель | X31: 0 | Z31: 1 | AA31: 4 | AD31: апрель | AE31: 0 | AG31: 1 | AH31: 5 | AK31: апрель | AL31: 0 | AN31: 1 | AO31: 6 | AR31: апрель | AS31: 0 | AU31: 1 | AV31: 7 | AY31: апрель | AZ31: 0 | BB31: 1 | BC31: 8
B32: май | C32: 0 | E32: 15 | F32: 1 | I32: май | J32: 0 | L32: 15 | M32: 2 | P32: май | Q32: 0 | S32: 1 | T32: 3 | W32: май | X32: 0 | Z32: 1 | AA32: 4 | AD32: май | AE32: 0 | AG32: 1 | AH32: 5 | AK32: май | AL32: 0 | AN32: 1 | AO32: 6 | AR32: май | AS32: 0 | AU32: 1 | AV32: 7 | AY32: май | AZ32: 0 | BB32: 1 | BC32: 8
B33: июнь | C33: 0 | E33: 15 | F33: 1 | I33: июнь | J33: 0 | L33: 15 | M33: 2 | P33: июнь | Q33: 0 | S33: 1 | T33: 3 | W33: июнь | X33: 0 | Z33: 1 | AA33: 4 | AD33: июнь | AE33: 0 | AG33: 1 | AH33: 5 | AK33: июнь | AL33: 0 | AN33: 1 | AO33: 6 | AR33: июнь | AS33: 0 | AU33: 1 | AV33: 7 | AY33: июнь | AZ33: 0 | BB33: 1 | BC33: 8
B34: июль | C34: 0 | E34: 15 | F34: 1 | I34: июль | J34: 0 | L34: 15 | M34: 2 | P34: июль | Q34: 0 | S34: 1 | T34: 3 | W34: июль | X34: 0 | Z34: 1 | AA34: 4 | AD34: июль | AE34: 0 | AG34: 1 | AH34: 5 | AK34: июль | AL34: 0 | AN34: 1 | AO34: 6 | AR34: июль | AS34: 0 | AU34: 1 | AV34: 7 | AY34: июль | AZ34: 0 | BB34: 1 | BC34: 8
B35: август | C35: 0 | E35: 15 | F35: 1 | I35: август | J35: 0 | L35: 15 | M35: 2 | P35: август | Q35: 0 | S35: 1 | T35: 3 | W35: август | X35: 0 | Z35: 1 | AA35: 4 | AD35: август | AE35: 0 | AG35: 1 | AH35: 5 | AK35: август | AL35: 0 | AN35: 1 | AO35: 6 | AR35: август | AS35: 0 | AU35: 1 | AV35: 7 | AY35: август | AZ35: 0 | BB35: 1 | BC35: 8
B36: сентябь | C36: 0 | E36: 15 | F36: 1 | I36: сентябь | J36: 0 | L36: 15 | M36: 2 | P36: сентябь | Q36: 0 | S36: 1 | T36: 3 | W36: сентябь | X36: 0 | Z36: 1 | AA36: 4 | AD36: сентябь | AE36: 0 | AG36: 1 | AH36: 5 | AK36: сентябь | AL36: 0 | AN36: 1 | AO36: 6 | AR36: сентябь | AS36: 0 | AU36: 1 | AV36: 7 | AY36: сентябь | AZ36: 0 | BB36: 1 | BC36: 8
B37: октябрь | C37: 0 | E37: 15 | F37: 1 | I37: октябрь | J37: 0 | L37: 15 | M37: 2 | P37: октябрь | Q37: 0 | S37: 1 | T37: 3 | W37: октябрь | X37: 0 | Z37: 1 | AA37: 4 | AD37: октябрь | AE37: 0 | AG37: 1 | AH37: 5 | AK37: октябрь | AL37: 0 | AN37: 1 | AO37: 6 | AR37: октябрь | AS37: 0 | AU37: 1 | AV37: 7 | AY37: октябрь | AZ37: 0 | BB37: 1 | BC37: 8
B38: ноябрь | C38: 0 | E38: 15 | F38: 1 | I38: ноябрь | J38: 0 | L38: 15 | M38: 2 | P38: ноябрь | Q38: 0 | S38: 1 | T38: 3 | W38: ноябрь | X38: 0 | Z38: 1 | AA38: 4 | AD38: ноябрь | AE38: 0 | AG38: 1 | AH38: 5 | AK38: ноябрь | AL38: 0 | AN38: 1 | AO38: 6 | AR38: ноябрь | AS38: 0 | AU38: 1 | AV38: 7 | AY38: ноябрь | AZ38: 0 | BB38: 1 | BC38: 8
B39: декабрь | C39: 0 | E39: 15 | F39: 1 | I39: декабрь | J39: 0 | L39: 15 | M39: 2 | P39: декабрь | Q39: 0 | S39: 1 | T39: 3 | W39: декабрь | X39: 0 | Z39: 1 | AA39: 4 | AD39: декабрь | AE39: 0 | AG39: 1 | AH39: 5 | AK39: декабрь | AL39: 0 | AN39: 1 | AO39: 6 | AR39: декабрь | AS39: 0 | AU39: 1 | AV39: 7 | AY39: декабрь | AZ39: 0 | BB39: 1 | BC39: 8
